Cogmind - Beta 11.1 @@@ ROGUE MODE // 2022.05.01 @ 16:31:21 Player: the cat Result: Destroyed by Z-Imprinter with Zionite Laser-M Performance ------------- Evolutions (3) 1500 Regions Visited (12) 2400 Robots Destroyed (179) 895 Value Destroyed (5558) 5558 Prototype IDs (20) 400 Alien Tech Used (1) 200 Bonus (1840) 1840 TOTAL SCORE: 12793 Bonus ------- High Alert Combat Kills 1702 Follower Combat Kills 480 Friendly Fire -342 Cogmind --------- Core Integrity 0/700 Matter 164/300 Energy 19/100 System Corruption 0% Temperature Cool (39) Movement Treading (330) Ox2 Location -7/Deep Caves Parts ------- > --- POWER (1) -------- (None) > --- PROPULSION (4) --- Armored Treads Improved Carbon-fiber Leg Advanced Myomer Leg > --- UTILITY (6) ------ Improved Cooling System High-capacity Storage Unit Advanced Terrain Scan Processor Makeshift Salvage Targeting Computer Armor Integrity Analyzer Improved Medium Armor Plating > --- WEAPON (3) ------- Gauss Cannon > --- INVENTORY (20) --- Carbon-fiber Leg Makeshift Leg Armored Wheel Coolant Injector High-capacity Matter Pod (200) Terrain Scanner Seismic Detector Long-range Tractor Beam AS-neutralizer No. 17b Dirty Datajack (20) Makeshift Axe CR-A16's Pointy Stick Peak State ------------ > --- POWER ------------ Cooled Antimatter Reactor > --- PROPULSION ------- Light Treads Light Treads Armored Treads Medium Treads > --- UTILITY ---------- High-capacity Storage Unit Advanced Targeting Computer 8R-AWN's Armor/EX > --- WEAPON ----------- Advanced Beam Cannon Advanced Beam Cannon Makeshift Axe > --- INVENTORY -------- Improved Deuterium Engine Light Treads Light Treads Light Treads Light Treads Improved Carbon-fiber Leg Advanced Myomer Leg Experimental Heat Sink Experimental Energy Well High-capacity Matter Pod Advanced Weapon Cycler System Mapper Long-range Tractor Beam AS-neutralizer No. 17b Minigun Flak Gun 8R-AWN's Boregun 8R-AWN's Boregun Rocket Launcher [Rating: 71] Favorites ----------- Power Heavy Ion Engine Engine Heavy Ion Engine Power Core Micro Nuclear Core Reactor Cooled Antimatter Reactor Propulsion Light Treads Treads Light Treads Leg Carbon-fiber Leg Wheel Wheel Utility High-capacity Storage Unit Device Terrain Scanner Storage High-capacity Storage Unit Processor Advanced Terrain Scan Processor Hackware System Mapper Protection Improved Medium Armor Plating Weapon Makeshift Axe Energy Gun Pulse Rifle Energy Cannon Advanced Beam Cannon Ballistic Gun Improved Assault Rifle Ballistic Cannon Gauss Cannon Launcher Proton Missile Launcher Slashing Weapon Makeshift Axe Build | -11 -10 -9 -9 -9 -8 -8 -8 -7 -7 -7 -7 -7 ------- Run | Scr Mat Mat Min Exi Min Mat Sto Fac Low Low Zio Dee Slots Evolved 6 | . . 2 . . . 2 . 2 . . . . Power . | . . . . . . . . . . . . . Propulsion 2 | . . 1 . . . 1 . . . . . . Utility 3 | . . 1 . . . 1 . 1 . . . . Weapon 1 | . . . . . . . . 1 . . . . Parts Attached 272 | 8 8 18 9 24 14 15 32 110 4 14 6 10 Power 23 | 1 3 2 2 4 3 . . 6 . . 1 1 Engine 17 | 1 3 2 2 4 2 . . 1 . . 1 1 Core 3 | . . . . . . . . 3 . . . . Reactor 3 | . . . . . 1 . . 2 . . . . Propulsion 66 | 3 2 6 6 4 5 5 8 25 . 1 . 1 Treads 47 | 1 1 5 2 3 3 4 8 19 . . . 1 Leg 11 | . . . 3 1 2 . . 4 . 1 . . Wheel 8 | 2 1 1 1 . . 1 . 2 . . . . Hover . | . . . . . . . . . . . . . Flight . | . . . . . . . . . . . . . Utility 81 | 1 . 7 1 8 4 6 5 34 3 7 2 3 Device 37 | . . 4 1 3 1 1 2 18 1 4 2 . Storage 8 | 1 . 2 . 1 2 . . 2 . . . . Processor 9 | . . . . 1 . 1 . 5 . . . 2 Hackware 2 | . . . . . 1 . . 1 . . . . Protection 25 | . . 1 . 3 . 4 3 8 2 3 . 1 Artifact . | . . . . . . . . . . . . . Weapon 102 | 3 3 3 . 8 2 4 19 45 1 6 3 5 Energy Gun 10 | 1 1 1 . . 1 . 1 5 . . . . Energy Cannon 11 | . . . . 1 . . 1 8 . . . 1 Ballistic Gun 43 | 2 2 2 . 5 1 3 13 9 . 2 2 2 Ballistic Cannon 6 | . . . . . . . . 5 . . . 1 Launcher 14 | . . . . 1 . . 1 9 . 2 . 1 Special Weapon . | . . . . . . . . . . . . . Impact Weapon . | . . . . . . . . . . . . . Slashing Weapon 18 | . . . . 1 . 1 3 9 1 2 1 . Piercing Weapon . | . . . . . . . . . . . . . Special Melee Weapon . | . . . . . . . . . . . . . Unidentified Prototypes 21 | . . 2 . 6 3 1 4 3 . 1 1 . Parts Lost 58 | . 4 4 . 3 5 . . 31 . 1 . 10 Power 9 | . 2 . . 1 . . . 4 . . . 2 Propulsion 19 | . . 3 . . 4 . . 10 . . . 2 Utility 10 | . . . . 1 1 . . 6 . 1 . 1 Weapon 20 | . 2 1 . 1 . . . 11 . . . 5 Highest Loss Streak 10 | . 4 2 . 2 5 . . 7 . 1 . 10 To Critical Strikes 2 | . . . . 1 . . . 1 . . . . Average Slot Usage (%) 93 | . 84 93 99 98 98 98 99 88 100 99 87 93 Engine 6 | . 13 11 10 11 10 9 9 1 . . 6 6 Core 1 | . . . . . . . . 3 7 7 . . Treads 19 | . 17 24 21 26 15 24 36 22 . . . . Leg 7 | . . . . . 17 9 . 1 30 29 28 27 Wheel 3 | . 10 5 10 6 . 1 . 1 . . . . Device 7 | . . 17 11 3 6 8 1 7 10 14 10 10 Storage 8 | . 14 11 11 11 11 9 9 7 7 7 7 7 Processor 5 | . . . . 6 11 1 9 6 7 7 7 13 Hackware 2 | . . . . . . . . 4 7 6 . . Protection 7 | . . 1 11 10 2 15 16 4 4 1 7 7 Energy Cannon 2 | . . . . . . . . 6 . . . 5 Ballistic Gun 14 | . 19 19 22 18 20 17 17 7 15 14 12 12 Slashing Weapon 2 | . . . . 3 . . . 3 5 4 7 . Naked Turns . | . . . . . . . . . . . . . Heaviest Build 128 | 14 14 128 58 101 100 74 72 93 67 68 91 67 Greatest Support 96 | 26 40 60 51 60 60 80 80 96 78 78 78 78 Greatest Overweight (x) 7 | . . 7 5 7 2 7 . 3 . 1 1 . Average Overweight (x) 1 | . . 2 4 3 1 1 . . . . . . Largest Inventory Capacity 25 | 8 8 25 20 25 25 20 20 20 20 20 20 20 Average Capacity 19 | 7 8 19 20 21 21 20 20 20 20 20 20 20 Most Carried 25 | 6 8 20 20 25 25 20 20 20 20 20 20 19 Average Carried 18 | 3 6 14 19 20 21 19 19 19 19 19 19 17 Final Capacity 25 | 8 8 20 20 25 20 20 20 20 20 20 20 20 Final Carried 25 | 4 7 19 20 25 20 20 20 20 20 15 19 12 Class Distribution -------------------- 67% | Scavenger-Mutant 16% | Mutant 4% | Hacker-Mutant 4% | Derelict-Mutant 4% | Scavenger-Gunner Dominant Class ---------------- Mutant | -10/Materials Mutant | -9/Materials Scavenger-Mutant | -9/Mines Scavenger-Mutant | -9/Exiles Scavenger-Mutant | -8/Mines Scavenger-Mutant | -8/Materials Scavenger-Mutant | -8/Storage Scavenger-Mutant | -7/Factory Scavenger-Mutant | -7/Lower Caves Scavenger-Mutant | -7/Lower Caves Mutant | -7/Zion Skirmisher | -7/Deep Caves Resources | -11 -10 -9 -9 -9 -8 -8 -8 -7 -7 -7 -7 -7 ----------- Run | Scr Mat Mat Min Exi Min Mat Sto Fac Low Low Zio Dee Matter Collected 7003 | 240 202 429 249 987 331 386 1064 2590 171 174 180 . Remotely 343 | . . . . . . . . 228 . 115 . . Salvage Created 8069 | . 364 958 250 489 101 436 1524 3578 36 211 64 58 Parts 451 | . 17 62 11 71 4 23 72 177 3 6 1 4 Haulers Intercepted 12 | . 1 3 . . . . 6 2 . . . . Recyclers Shooed 2 | . . . . . . . . 2 . . . . Parts Field Recycled . | . . . . . . . . . . . . . Retrieved Matter . | . . . . . . . . . . . . . Parts Self-Destructed 14 | . . . . . . . . . 3 6 5 . Prevented 3 | . . . . . . . . . . 3 . . Kills | -11 -10 -9 -9 -9 -8 -8 -8 -7 -7 -7 -7 -7 ------- Run | Scr Mat Mat Min Exi Min Mat Sto Fac Low Low Zio Dee Combat Hostiles Destroyed 139 | . 9 22 4 3 . 8 21 66 1 4 . 1 Guns 96 | . 8 22 4 1 . 8 21 30 1 1 . . Cannons 20 | . . . . . . . . 19 . . . 1 AOE 17 | . 1 . . 2 . . . 11 . 3 . . Classes Destroyed 19 | . 3 3 1 3 . . 4 4 . . . 1 Worker 11 | . . 3 1 . 1 . . 6 . . . . Builder 8 | . . . . . . . 1 7 . . . . Tunneler 2 | . . . . . . . . 2 . . . . Hauler 12 | . 1 3 . . . . 6 2 . . . . Recycler 11 | . . . 1 . 1 1 1 7 . . . . Operator 1 | . . . . . . . . 1 . . . . Turret 1 | . . . . 1 . . . . . . . . Watcher 3 | . . 1 . . . . . 2 . . . . Swarmer 24 | . 3 10 . . . . 1 10 . . . . Grunt 79 | . 6 8 4 . . 5 13 38 1 4 . . Brawler 2 | . . . . . . . 1 1 . . . . Duelist 3 | . . . . . . . 1 2 . . . . Protector 2 | . . . . . . . 1 1 . . . . Sentry 21 | . . 4 . . . 3 7 7 . . . . Hunter 2 | . . . . . . . . 2 . . . . Programmer 5 | . . . . . . . . 5 . . . . Zionite 2 | . . . . 2 . . . . . . . . Z-Light 1 | . . . . . . . . . . . . 1 Assembled 2 | . . . . 2 . . . . . . . . Best Kill Streak 12 | . 3 12 4 3 1 3 6 9 1 4 . 1 Combat Bots Only 9 | . 3 9 3 2 . 3 4 9 1 4 . 1 Max Kills in Single Turn 6 | . 1 2 1 1 1 1 2 6 1 2 . 1 Gunslinging 1 | . . 1 . . . . . . . . . . Exploded 2 | . 1 . . 1 . . . 2 . 2 . . Melee . | . . . . . . . . . . . . . Uniques/NPCs Destroyed 5 | . . . . 4 1 . . . . . . . 8R-AWN (-9/Exiles) EX-HEX (-9/Exiles) EX-DEC (-9/Exiles) EX-BIN (-9/Exiles) ME-RLN (-8/Mines) Combat | -11 -10 -9 -9 -9 -8 -8 -8 -7 -7 -7 -7 -7 -------- Run | Scr Mat Mat Min Exi Min Mat Sto Fac Low Low Zio Dee Damage Taken 13104 | . 667 764 218 1116 574 503 980 6126 119 174 . 1863 Core 1234 | . 161 63 31 90 77 34 59 507 . 18 . 194 Absorbed by Shields . | . . . . . . . . . . . . . Regen/Repaired (Parts) 233 | . . . . . . . . . . . 233 . Core Remaining (%) 63 | 100 35 . . . 34 . 83 . . . . . Volleys Fired 577 | . 37 57 25 69 16 27 81 234 7 11 . 13 Largest 3 | . 2 2 2 2 2 2 2 3 2 3 . 3 Hottest 199 | . 85 76 46 60 79 53 51 199 48 73 . 130 Shots Fired 1132 | . 74 114 50 131 32 54 162 454 13 23 . 25 Gun 881 | . 74 114 50 125 32 54 162 224 13 21 . 12 Cannon 221 | . . . . . . . . 210 . . . 11 Launcher 30 | . . . . 6 . . . 20 . 2 . 2 Special . | . . . . . . . . . . . . . Kinetic 840 | . 38 101 50 125 28 54 162 233 13 21 . 15 Thermal 237 | . 11 13 . . 4 . . 201 . . . 8 Explosive 17 | . . . . 6 . . . 11 . . . . Electromagnetic 38 | . 25 . . . . . . 9 . 2 . 2 Robot Hit Streak 19 | . 11 12 10 17 7 7 19 18 5 5 . 5 Robot Miss Streak 11 | . 3 4 2 5 2 5 5 6 3 8 . 11 Penetration Max 1 | . . . . 1 . . . . . . . . Secondary Targets 7 | . . 2 . . . . 2 3 . . . . Max Gunslinging Chain 1 | . . 1 . . . . 1 1 . . . . Shots Hit Robots 796 | . 53 75 38 96 22 33 121 322 11 11 2 12 Core Hits 425 | . 19 40 10 33 3 40 62 202 3 6 1 6 Critical Kills 11 | . . . . 5 . . 1 5 . . . . Critical Parts Destroyed 23 | . . 1 . 15 4 . 1 2 . . . . Critical Strikes 39 | . 1 2 . 20 4 . 2 9 . . . 1 Burn 3 | . 1 1 . . . . . 1 . . . . Meltdown 4 | . . . . . . . . 4 . . . . Destroy 30 | . . 1 . 20 4 . 2 3 . . . . Blast 2 | . . . . . . . . 1 . . . 1 Melee Attacks 54 | . . . . 4 . 1 4 23 10 6 6 . Impact . | . . . . . . . . . . . . . Slashing 54 | . . . . 4 . 1 4 23 10 6 6 . Piercing . | . . . . . . . . . . . . . Sneak Attacks 4 | . . . . . . . . 4 . . . . Combat Hostiles . | . . . . . . . . . . . . . Follow-up Attacks . | . . . . . . . . . . . . . Damage Inflicted 17396 | . 794 1113 557 1615 275 642 2220 9184 160 391 162 283 Guns 10516 | . 727 1102 557 1420 275 642 2220 3130 160 178 . 105 Cannons 3448 | . . . . . . . . 3308 . . . 140 Explosions 2875 | . 67 . . 153 . . . 2422 . 195 . 38 Melee 528 | . . . . 42 . . . 324 . . 162 . Ramming 29 | . . 11 . . . . . . . 18 . . Kinetic 10458 | . 332 1027 557 1420 230 642 2220 3526 160 178 . 166 Thermal 4253 | . 219 75 . . 45 . . 3835 . . . 79 Explosive 1292 | . . . . 153 . . . 1139 . . . . Electromagnetic 836 | . 243 . . . . . . 360 . 195 . 38 Impact . | . . . . . . . . . . . . . Slashing 528 | . . . . 42 . . . 324 . . 162 . Piercing . | . . . . . . . . . . . . . Highest Corruption 15 | . . . . . 2 . . 15 13 13 13 . Average Corruption 10 | . . . . . 1 . . 9 13 13 13 . Corruption Purged 5 | . . . . . . . . 5 . . . . Corruption Blocked . | . . . . . . . . . . . . . Effects 168 | . . . . . 3 . . 118 27 18 2 . Message Errors 33 | . . . . . . . . 23 7 3 . . Matter Fused 35 | . . . . . 1 . . 24 7 3 . . Heat Flow Errors 27 | . . . . . . . . 19 4 4 . . Energy Discharges 22 | . . . . . 1 . . 14 4 3 . . Parts Rejected 7 | . . . . . . . . 5 . 2 . . Data Loss (minor) 18 | . . . . . . . . 12 3 1 2 . Data Loss (major) 7 | . . . . . . . . 6 1 . . . Misfires 8 | . . . . . . . . 7 . 1 . . Alerts 5 | . . . . . 1 . . 3 . 1 . . Misdirections 1 | . . . . . . . . 1 . . . . Weapon Failures 5 | . . . . . . . . 4 1 . . . Overload Shots . | . . . . . . . . . . . . . Overflow Damage 290 | . . . . . . . . 290 . . . . Projectiles 42 | . . . . . . . . 42 . . . . Explosions 216 | . . . . . . . . 216 . . . . Melee 32 | . . . . . . . . 32 . . . . Knockbacks 10 | . . . . . . . . 9 . . . 1 Impact . | . . . . . . . . . . . . . Kinetic 9 | . . . . . . . . 8 . . . 1 Secondary 1 | . . . . . . . . 1 . . . . Self-Inflicted Damage 67 | . 30 5 . 22 . . . . . . . 10 Shots 3 | . 1 . . 1 . . . . . . . 1 Rammed 1 | . . 1 . . . . . . . . . . Targets Rammed 3 | . . 1 . . . . . . . 2 . . Kicked 2 | . . . . . . . . . . 2 . . Crushed . | . . . . . . . . . . . . . Highest Temperature 358 | . 301 66 . 180 63 . 207 358 194 206 . 68 Average Temperature 78 | . 85 20 . 43 27 . 41 105 57 72 . 25 Received Heat Transfer 3903 | . 291 189 123 . . 243 540 1842 72 81 . 522 Effects 6 | . . . . . . . . 6 . . . . Energy Bleed 3 | . . . . . . . . 3 . . . . Interference 3 | . . . . . . . . 3 . . . . Siege Activations . | . . . . . . . . . . . . . Robots Corrupted . | . . . . . . . . . . . . . Combat Hostiles . | . . . . . . . . . . . . . Parts Fried 1 | . . . . . . . . . . 1 . . Impact Corruptions . | . . . . . . . . . . . . . Robots Melted 6 | . . . . . . . . 6 . . . . Combat Hostiles 6 | . . . . . . . . 6 . . . . Parts Melted 18 | . . 1 . . . . . 17 . . . . Heat Transferred 6957 | . 544 259 . . 111 . . 5969 . . . 74 Parts Sabotaged . | . . . . . . . . . . . . . Parts Stolen 6 | . . . . . . . . . . 6 . . Parts Stripped . | . . . . . . . . . . . . . Power Chain Reactions 3 | . 1 . . . . . . 2 . . . . Missiles Intercepted . | . . . . . . . . . . . . . Alert | -11 -10 -9 -9 -9 -8 -8 -8 -7 -7 -7 -7 -7 ------- Run | Scr Mat Mat Min Exi Min Mat Sto Fac Low Low Zio Dee Peak Influence 1823 | . 233 473 232 . 10 131 810 1823 . . . . Initial 192 | . . . 147 . . 3 55 192 . . . . Average 607 | . 126 225 118 . 5 57 579 991 . . . . Maximum Alert Level 5 | . 1 2 1 . . . 3 5 . . . . Low Security (%) 32 | 100 74 56 75 . 100 100 11 3 . . . . Level 1 11 | . 25 28 24 . . . 13 5 . . . . Level 2 22 | . . 15 . . . . 33 34 . . . . Level 3 6 | . . . . . . . 40 3 . . . . Level 4 18 | . . . . . . . . 36 . . . . Level 5 8 | . . . . . . . . 16 . . . . High Security . | . . . . . . . . . . . . . Max Security . | . . . . . . . . . . . . . Squads Dispatched 29 | . . 2 1 . . 2 4 20 . . . . Investigation 6 | . . 1 1 . . 1 . 3 . . . . Extermination 4 | . . . . . . . . 4 . . . . Reinforcement 12 | . . 1 . . . 1 3 7 . . . . Assault 7 | . . . . . . . 1 6 . . . . Garrison . | . . . . . . . . . . . . . Intercept . | . . . . . . . . . . . . . Searches Triggered . | . . . . . . . . . . . . . Construction Impeded 2 | . . . . . . . . 2 . . . . Haulers Reinforced 2 | . . . . . . . . 2 . . . . Active Scanning Responses . | . . . . . . . . . . . . . Cargo Convoy Interrupts . | . . . . . . . . . . . . . Stealth | -11 -10 -9 -9 -9 -8 -8 -8 -7 -7 -7 -7 -7 --------- Run | Scr Mat Mat Min Exi Min Mat Sto Fac Low Low Zio Dee Distress Signals 11 | . . 4 . . . . 4 3 . . . . Communications Jammed . | . . . . . . . . . . . . . Distress Signals . | . . . . . . . . . . . . . Times Spotted 267 | . 13 37 5 53 1 8 37 100 1 9 . 3 Peak Tracking Total 9 | . 4 8 3 9 1 4 7 8 1 5 . 3 Tactical Retreats 38 | . 1 3 . 25 . . 2 7 . . . . Traps | -11 -10 -9 -9 -9 -8 -8 -8 -7 -7 -7 -7 -7 ------- Run | Scr Mat Mat Min Exi Min Mat Sto Fac Low Low Zio Dee Traps Triggered 6 | . 1 . . . . 1 . 4 . . . . Indirectly . | . . . . . . . . . . . . . Trap Hack Attempts . | . . . . . . . . . . . . . Triggered . | . . . . . . . . . . . . . Disarmed . | . . . . . . . . . . . . . Reprogrammed . | . . . . . . . . . . . . . Reused . | . . . . . . . . . . . . . Traps Extracted . | . . . . . . . . . . . . . Installed . | . . . . . . . . . . . . . Triggered . | . . . . . . . . . . . . . Exploded 3 | . . . . 3 . . . . . . . . Machines | -11 -10 -9 -9 -9 -8 -8 -8 -7 -7 -7 -7 -7 ---------- Run | Scr Mat Mat Min Exi Min Mat Sto Fac Low Low Zio Dee Machines Disabled 36 | . . . . 10 . 1 3 22 . . . . Max in Single Turn 16 | . . . . 1 . 1 1 16 . . . . Garrison Access 4 | . . . . . . . 1 3 . . . . Machines Sabotaged . | . . . . . . . . . . . . . Garrisons Compromised 1 | . . . . . . . . 1 . . . . Overloaded Fab Kills . | . . . . . . . . . . . . . Hacking | -11 -10 -9 -9 -9 -8 -8 -8 -7 -7 -7 -7 -7 --------- Run | Scr Mat Mat Min Exi Min Mat Sto Fac Low Low Zio Dee Machines Accessed 40 | . 4 6 2 1 . 5 8 13 1 . . . Terminals 28 | . 4 5 1 . . 5 7 6 . . . . Fabricators 5 | . . . . . . . . 5 . . . . Repair Stations . | . . . . . . . . . . . . . Recycling Units 1 | . . 1 . . . . . . . . . . Scanalyzers . | . . . . . . . . . . . . . Garrison Access 3 | . . . . . . . 1 2 . . . . Total Hacks 102 | . 11 15 4 1 . 16 19 35 1 . . . Successful 51 | . 8 8 4 1 . 10 8 11 1 . . . Failed 51 | . 3 7 . . . 6 11 24 . . . . Catastrophic 5 | . . 3 . . . 1 . 1 . . . . Database Lockouts . | . . . . . . . . . . . . . Manual 57 | . 2 10 1 . . 9 6 25 . . 4 . Terminals 76 | . 11 12 3 . . 16 16 18 . . . . Fabricators 14 | . . . . . . . . 14 . . . . Repair Stations . | . . . . . . . . . . . . . Recycling Units 3 | . . 3 . . . . . . . . . . Scanalyzers . | . . . . . . . . . . . . . Garrison Access 6 | . . . . . . . 3 3 . . . . Terminal Hacks 34 | . 8 5 3 1 . 7 6 3 1 . . . Record 1 | . . . . 1 . . . . . . . . Open Door 5 | . . . 1 . . . 3 . 1 . . . Level Access Points 1 | . . . 1 . . . . . . . . . Branch Access Points 4 | . . 1 . . . 1 1 1 . . . . Terminal Index 1 | . . . . . . 1 . . . . . . Unreport Threat 5 | . 1 . . . . 1 2 1 . . . . Locate Traps 7 | . 3 2 . . . 1 . 1 . . . . Transport Status 1 | . 1 . . . . . . . . . . . Hauler Manifests 3 | . 1 1 . . . 1 . . . . . . Registered Components 1 | . 1 . . . . . . . . . . . Zone Layout 5 | . 1 1 1 . . 2 . . . . . . Fabricator Hacks 1 | . . . . . . . . 1 . . . . Network Status 1 | . . . . . . . . 1 . . . . Repair Station Hacks . | . . . . . . . . . . . . . Recycling Unit Hacks . | . . . . . . . . . . . . . Scanalyzer . | . . . . . . . . . . . . . Garrison Access Hacks 2 | . . . . . . . 1 1 . . . . Seal Access 2 | . . . . . . . 1 1 . . . . Unauthorized Hacks 14 | . . 3 1 . . 3 1 6 . . . . Terminals 7 | . . 2 1 . . 3 1 . . . . . Track 2 | . . . 1 . . . 1 . . . . . Assimilate 1 | . . . . . . 1 . . . . . . Botnet 2 | . . 1 . . . 1 . . . . . . Disrupt 2 | . . 1 . . . 1 . . . . . . Fabricators 6 | . . . . . . . . 6 . . . . Liberate 4 | . . . . . . . . 4 . . . . Fabnet 2 | . . . . . . . . 2 . . . . Repair Stations . | . . . . . . . . . . . . . Recycling Units 1 | . . 1 . . . . . . . . . . Tunnel 1 | . . 1 . . . . . . . . . . Scanalyzers . | . . . . . . . . . . . . . Garrison Access . | . . . . . . . . . . . . . Data Cores Recovered . | . . . . . . . . . . . . . Used . | . . . . . . . . . . . . . Hacking Detections 33 | . 4 6 1 . . 5 5 12 . . . . Full Trace Events 2 | . . . . . . . . 2 . . . . Feedback Events . | . . . . . . . . . . . . . Feedback Blocked . | . . . . . . . . . . . . . Robot Schematics Acquired 4 | . . . . . . . . . . . 4 . Robots Built . | . . . . . . . . . . . . . Authchips . | . . . . . . . . . . . . . Time . | . . . . . . . . . . . . . Total Robot Build Rating . | . . . . . . . . . . . . . Part Schematics Acquired 15 | . . . . . . . . . . . 15 . Parts Built . | . . . . . . . . . . . . . Authchips . | . . . . . . . . . . . . . Time . | . . . . . . . . . . . . . Total Part Build Rating . | . . . . . . . . . . . . . Parts Repaired . | . . . . . . . . . . . . . Time . | . . . . . . . . . . . . . Parts Recycled . | . . . . . . . . . . . . . Recycled Matter . | . . . . . . . . . . . . . Retrieved Matter . | . . . . . . . . . . . . . Retrieved Components . | . . . . . . . . . . . . . Parts Scanalyzed . | . . . . . . . . . . . . . Part Schematics Acquired . | . . . . . . . . . . . . . Parts Damaged . | . . . . . . . . . . . . . Bothacking | -11 -10 -9 -9 -9 -8 -8 -8 -7 -7 -7 -7 -7 ------------ Run | Scr Mat Mat Min Exi Min Mat Sto Fac Low Low Zio Dee Used RIF Installer . | . . . . . . . . . . . . . Robots Hacked . | . . . . . . . . . . . . . Non-combat . | . . . . . . . . . . . . . Combat . | . . . . . . . . . . . . . Robot Hacks Applied . | . . . . . . . . . . . . . Relay Couplers Released 6 | . . . . . . . . 6 . . . . Machine Destruction 6 | . . . . . . . . 6 . . . . Fabnet Peak Effective % . | . . . . . . . . . . . . . Robots Rewired . | . . . . . . . . . . . . . Allies Hacked . | . . . . . . . . . . . . . Hacks Repelled . | . . . . . . . . . . . . . Allies | -11 -10 -9 -9 -9 -8 -8 -8 -7 -7 -7 -7 -7 -------- Run | Scr Mat Mat Min Exi Min Mat Sto Fac Low Low Zio Dee Total Allies 14 | . . . 1 . . . 10 3 . . . . Largest Group 10 | . . . 1 1 . . 10 3 . . . . Highest-Rated Group 173 | . . . 31 31 . . 173 93 . . . . Highest-Rated Ally 31 | . . . 31 31 . . 29 31 . . . . Total Orders 2 | . . . . . . . 2 . . . . . EXPLORE 2 | . . . . . . . 2 . . . . . Ally Attacks 126 | . . . . . 4 . 104 18 . . . . Total Damage 1839 | . . . . . 133 . 1427 279 . . . . Kills 19 | . . . . . 1 . 16 2 . . . . Allies Corrupted 2 | . . . . . . . 2 . . . . . Allies Melted . | . . . . . . . . . . . . . Turrets Deployed 1 | . . . . . 1 . . . . . . . Intel | -11 -10 -9 -9 -9 -8 -8 -8 -7 -7 -7 -7 -7 ------- Run | Scr Mat Mat Min Exi Min Mat Sto Fac Low Low Zio Dee Robot Analysis Total . | . . . . . . . . . . . . . Derelict Logs Recovered 4 | . . . 1 . . . . . 2 . 1 . Drone Launches 16 | . . . . . . . 16 . . . . . Drone Recoveries 2 | . . . . . . . 2 . . . . . Exploration | -11 -10 -9 -9 -9 -8 -8 -8 -7 -7 -7 -7 -7 ------------- Run | Scr Mat Mat Min Exi Min Mat Sto Fac Low Low Zio Dee Turns Passed 13742 | 77 461 883 807 2323 309 642 1082 4083 643 597 1668 167 Spaces Moved 7418 | 65 296 400 450 1113 116 287 486 1997 495 345 1267 101 Core 2 | 2 . . . . . . . . . . . . Treads 2505 | . 48 175 5 440 11 90 486 1250 . . . . Legs 2612 | . . . 2 . 105 142 . 155 495 345 1267 101 Wheels 2299 | 63 248 225 443 673 . 55 . 592 . . . . Hover . | . . . . . . . . . . . . . Flight . | . . . . . . . . . . . . . Fastest Speed 50 | 50 100 100 130 155 195 160 162 115 120 120 120 120 Average Speed 150 | 89 109 160 155 181 204 182 162 158 120 120 123 120 Slowest Speed 320 | 100 160 240 240 240 265 195 162 320 120 190 190 120 Overloaded Moves . | . . . . . . . . . . . . . Propulsion Burnouts . | . . . . . . . . . . . . . Robots Hopped . | . . . . . . . . . . . . . Cave-ins Triggered . | . . . . . . . . . . . . . Exploration Rate (%) 57 | 5 64 41 98 89 40 24 91 61 68 57 85 19 Regions Visited 12 Branch Regions 8 Pre-discovered Areas 3 | . . 1 1 1 . . . . . . . . Known Exits Taken 4 | . . 1 . . 1 1 . 1 . . . . Unknown Exits Taken 8 | 1 1 . 1 1 . . 1 . 1 1 1 . Scrap Searched 9 | . . . 2 . . . . . 3 2 2 . Spaces Dug 36 | . . . . 1 . 1 . 18 10 6 . . Terrain Destroyed 183 | . 6 . . 58 6 2 . 94 10 6 . 1 Melee 35 | . . . . 1 . 1 . 17 10 6 . . Projectile 36 | . . . . 19 5 1 . 10 . . . 1 AOE 105 | . 6 . . 32 . . . 67 . . . . Terrain Rammed . | . . . . . . . . . . . . . Walls Destroyed . | . . . . . . . . . . . . . Machines Disabled . | . . . . . . . . . . . . . Actions | -11 -10 -9 -9 -9 -8 -8 -8 -7 -7 -7 -7 -7 --------- Run | Scr Mat Mat Min Exi Min Mat Sto Fac Low Low Zio Dee Total 8986 | 81 356 538 506 1284 158 351 673 2530 522 494 1367 126 Wait 356 | 3 9 13 11 29 . 2 35 64 1 112 75 2 Move 7406 | 64 295 399 449 1112 115 286 485 1996 494 344 1266 101 Hop . | . . . . . . . . . . . . . Pick Up 141 | 6 7 30 4 23 3 7 2 47 3 2 7 . Fast Attach 80 | 4 1 6 2 4 3 6 15 32 . 4 3 . Attach 84 | 2 4 7 1 11 7 2 1 37 1 1 3 7 Detach 22 | . . 1 1 4 4 . 2 9 . . 1 . Swap 110 | 2 3 5 6 9 4 7 16 42 3 10 . 3 Drop 146 | . . 19 7 19 6 13 25 46 3 2 6 . Fire 577 | . 37 57 25 69 16 27 81 234 7 11 . 13 Melee 54 | . . . . 4 . 1 4 23 10 6 6 . Ram 1 | . . 1 . . . . . . . . . . Kick 2 | . . . . . . . . . . 2 . . Crush . | . . . . . . . . . . . . . Escape Stasis . | . . . . . . . . . . . . . Rewire . | . . . . . . . . . . . . . Trap . | . . . . . . . . . . . . . Miscellaneous 7 | . . . . . . . 7 . . . . . Route ------- -11/Scrapyard -10/Materials (discovered 3 exits: *Mat x2 / [*Min]) -9/Materials -9/Mines (discovered 3 exits: *Mat x2 / *Exi) -9/Exiles (discovered 2 exits: [*Min x2]) -8/Mines -8/Materials (discovered 2 exits: *Sto x2) -8/Storage (discovered 2 exits: *Fac / Rec) -7/Factory (discovered 5 exits: *Fac x3 / *Low x2) -7/Lower Caves -7/Lower Caves (discovered 2 exits: Fac / *Zio) -7/Zion (discovered 2 exits: [*Dee] / [*Pro]) -7/Deep Caves History --------- Turn | Location | Event 28 | -11/Scrapyard | Discovered new exit (range 15) 78 | -11/Scrapyard | Entered Materials 183 | -10/Materials | Discovered new exit (range 10) 286 | -10/Materials | Discovered new exit (range 6) 310 | -10/Materials | Build established: Mutant 325 | -10/Materials | Core integrity fell below 50% 387 | -10/Materials | Lost 4 parts (2p2w) 488 | -10/Materials | Discovered new exit (range 11) 539 | -10/Materials | Entered another Materials area 539 | -9/Materials | Evolved 2 slots: Propulsion x1, Utility x1 1197 | -9/Materials | Destroyed 9 combat bots 1273 | -9/Materials | Identified exit to Mines 1422 | -9/Materials | Entered Mines 1454 | -9/Mines | Identified exit to Materials 1464 | -9/Mines | Build established: Scavenger-Mutant 1494 | -9/Mines | Met a Derelict shopkeep closing up shop 2144 | -9/Mines | Received a Mining Laser from a helpful Derelict 2219 | -9/Mines | Deemed a non-threat by the Exiles lab entrance 2220 | -9/Mines | Discovered new exit (range 5) 2229 | -9/Mines | Entered Exiles 2229 | -9/Exiles | Accompanied by 1 ally 2254 | -9/Exiles | Discovered new exit (range 15) 2271 | -9/Exiles | Met 8R-AWN 2355 | -9/Exiles | Met EX-HEX 2414 | -9/Exiles | Met EX-DEC 2430 | -9/Exiles | Learned location of Zion (-7) 2567 | -9/Exiles | Visited The Gauntlet 2757 | -9/Exiles | Met EX-BIN 2925 | -9/Exiles | Attacked by the Exiles 2984 | -9/Exiles | Discovered new exit (range 10) 3111 | -9/Exiles | Destroyed 8R-AWN 3121 | -9/Exiles | Found Prototype Device 3129 | -9/Exiles | Found Prototype Ballistic Gun 3136 | -9/Exiles | Found Prototype Ballistic Gun 3136 | -9/Exiles | Identified 8R-AWN's Boregun 3145 | -9/Exiles | Identified AS-neutralizer No. 17b 3154 | -9/Exiles | Found Prototype Protection 3320 | -9/Exiles | Destroyed EX-HEX 3507 | -9/Exiles | Destroyed EX-DEC 3535 | -9/Exiles | Destroyed EX-BIN 3611 | -9/Exiles | Found Deploy-a-Sentry 4552 | -9/Exiles | Left Exiles lab with Deploy-a-Sentry 4552 | -9/Exiles | Entered Mines 4582 | -8/Mines | ME-RLN came to Exiles' defense 4588 | -8/Mines | DAS Turret deployed 4591 | -8/Mines | Core integrity fell below 50% 4625 | -8/Mines | Allies destroyed ME-RLN 4645 | -8/Mines | Found Prototype Hackware 4645 | -8/Mines | Identified Ghost Barrier 4656 | -8/Mines | Lost 5 parts (4n1u) 4673 | -8/Mines | Found Prototype Hackware 4815 | -8/Mines | Discovered exit to Materials (range 16) 4861 | -8/Mines | Entered Materials 4861 | -8/Materials | Evolved 2 slots: Propulsion x1, Utility x1 4863 | -8/Materials | Identified 8R-AWN's Armor/EX 4899 | -8/Materials | Identified exit to Storage 5503 | -8/Materials | Entered Storage 5622 | -8/Storage | Assisted by bots powering up and referring to "LRC-V3" 5650 | -8/Storage | Identified exit to Recycling 5903 | -8/Storage | First assault squad dispatched 6363 | -8/Storage | Found Prototype Launcher 6363 | -8/Storage | Identified Gui. Missile Launcher 6509 | -8/Storage | Discovered new exit (range 8) 6585 | -8/Storage | Entered Factory 6585 | -7/Factory | Evolved 2 slots: Utility x1, Weapon x1 6947 | -7/Factory | Lost 3 parts (1p1n1w) 7724 | -7/Factory | Lost 3 parts (2n1u) 7828 | -7/Factory | Identified System Mapper 8105 | -7/Factory | Discovered new exit (range 12) 8210 | -7/Factory | Build established: Scavenger-Gunner 8481 | -7/Factory | Garrison activated, responded to threat 8624 | -7/Factory | First assault squad dispatched 8724 | -7/Factory | System corruption reached 10% 8799 | -7/Factory | Lost 7 parts (1p2n2u2w) 8988 | -7/Factory | Identified exit to Factory 9247 | -7/Factory | Build established: Scavenger-Mutant 9294 | -7/Factory | Found Prototype Launcher 9294 | -7/Factory | Identified Rocket Array 9417 | -7/Factory | Allied Derelicts emerged from ambush trap array 9823 | -7/Factory | Core integrity fell below 50% 9847 | -7/Factory | Build established: Hacker-Mutant 9903 | -7/Factory | Discovered exit to Factory (range 8) 10009 | -7/Factory | Lost 6 parts (1p2n1u2w) 10018 | -7/Factory | Destroyed 9 combat bots 10135 | -7/Factory | Discovered exit to Factory (range 15) 10592 | -7/Factory | Identified exit to Lower Caves 10668 | -7/Factory | Entered Lower Caves 10672 | -7/Lower Caves | Build established: Scavenger-Mutant 10814 | -7/Lower Caves | Learned 4 Factory zone layouts 10925 | -7/Lower Caves | Learned location of 1 exit from Factory 11274 | -7/Lower Caves | Discovered new exit (range 6) 11311 | -7/Lower Caves | Entered another Lower Caves area 11343 | -7/Lower Caves | Discovered exit to Factory (range 13) 11821 | -7/Lower Caves | Found Alien Artifact 11821 | -7/Lower Caves | Identified Core Expander 11821 | -7/Lower Caves | Installed Core Expander, added new Utility slot 11877 | -7/Lower Caves | Spotted O8-Z5S(f) 11877 | -7/Lower Caves | Spotted BQ-77U(f) 11878 | -7/Lower Caves | Encountered a Master Thief 11878 | -7/Lower Caves | Encountered a Master Thief 11883 | -7/Lower Caves | Spotted E4-KM4(f) 11884 | -7/Lower Caves | Encountered a Master Thief 11884 | -7/Lower Caves | Spotted NW-HPX(f) 11884 | -7/Lower Caves | Spotted D0-ZSK(f) 11884 | -7/Lower Caves | 8R-AWN's Boregun stolen by Master Thief 11884 | -7/Lower Caves | 8R-AWN's Boregun stolen by Master Thief 11885 | -7/Lower Caves | Encountered a Master Thief 11885 | -7/Lower Caves | Encountered a Master Thief 11886 | -7/Lower Caves | Discovered new exit (range 13) 11890 | -7/Lower Caves | Exp. Energy Well stolen by Master Thief 11895 | -7/Lower Caves | Adv. Weapon Cycler stolen by Master Thief 11896 | -7/Lower Caves | Med. Treads stolen by Master Thief 11908 | -7/Lower Caves | Entered Zion 11930 | -7/Zion | Acquired unknown access codes intercepted by a Zionite 11973 | -7/Zion | System corruption cleaned by Quarantine Array 12015 | -7/Zion | Found CR-A16's Pointy Stick 12347 | -7/Zion | Learned 4 Factory zone layouts 12406 | -7/Zion | Build established: Derelict-Mutant 12424 | -7/Zion | Visited the Megawrench Repair Shop 12424 | -7/Zion | Megawrench repaired 9 parts 12718 | -7/Zion | Found Prototype Device 12718 | -7/Zion | Identified Bomb Factory No. 2 12727 | -7/Zion | Discovered new exit (range 14) 13030 | -7/Zion | Build established: Mutant 13250 | -7/Zion | Received a hallucinogenic algorithm 13257 | -7/Zion | Discovered new exit (range 9) 13442 | -7/Zion | Opened final containment barrier to the Deep Caves 13461 | -7/Zion | Saw the warning signs outside the Deep Caves entrance 13576 | -7/Zion | Entered Deep Caves 13693 | -7/Deep Caves | Attacked by Z-Imprinter 13711 | -7/Deep Caves | Core integrity fell below 20% 13743 | -7/Deep Caves | Destroyed by Z-Imprinter with Zionite Laser-M Last Messages --------------- GOAL=ESCAPE 13685_ NEW_ZION: Z-Facility proximity alert. 13689_ RS-877(o) is busy at the terminal. Z-Imprinter: GET AWAY FROM HERE! I've worked too hard for our future just to have you ruin everything! 13707_ Hpw. Shotgun destroyed. 13710_ Mak. Power Source destroyed. 13714_ EX-3L0(z) IFF system glitched. 13717_ Proton Missile Launcher destroyed. 13727_ Imp. Medium Armor Plating destroyed. 13732_ Deuterium Engine destroyed. 13733_ Carbon-fiber Leg destroyed. 13736_ Minigun destroyed. 13736_ Autogun destroyed. 13738_ Plasma Cannon destroyed. 13738_ EX-3L0(z) knocked back. 13740_ Slug penetrates EX-3L0(z). 13740_ EX-3L0(z) suffers critical hit (Blast). 13740_ Destroyed Phase Shifter. 13740_ EX-3L0(z) destroyed. Map ----- +----------------------------------------------------+ | | | | | | | | | | | | | | | | | | | ?????????????????????????????????????#?#?##??????? | | ????????????????????????????###?#?????#?##???#?#?? | | ?????????????????#?#???#????##??##?#?#????????#??# | | ??????????##????#???????##????#??#?????#?###?##?#? | | ?? ##?### ##?????######?####?####????????#?#??## | | ## # #???### ###??#????##??########### | | ##### ##?????##?#### ## | | ##?#?#??????# | | #??##?#?#??## | | ###?#?####?## | | ##?##### ### | | " ####??# | | " #;#### ## | | " !%% z ## ## | | " =!! #### ## | | I ;# ###?## ##? | | " @ ##########?#### ###? | | " ;####?#########?## #?## | | " #;###???##?#?## ### ##?# | | " ####???###???# ##?# | | #???????####?# ### | | ##???#?####?## | | #?#?#?#??# ## | | #??##???? ## #### | | ##?#??##? ????### ##? | | ##?#??## ?? #?## ## | | " ##??##? ??? #?## ## | | #?#?#?????? #### ## | | ##???#? ?? ?### ## ### | | ? ##?????? ????? ?# ## ##?# | | ??? #?????# ?? ???? ?# #? #### | | ?????? ??????? ?? ? ? ?# ## ###? | | ???????? ??????????????#?# #? #??? | | ?????????????? ?????#? ????????# ## ?#? | | ???????????????? ?????????????#???## #? ? ? | | ?????????????????????????????#????####??# #? ? ? | | ???????????????????????????????? ??????## ##? | | ????????????????????????????#????###????# #?#?? | | ???????????????????????????????????####?# #??#? | | ??????????????????????????????# ??????### ##????? | | ??????????????????????????????????????######?#?? ? | +----------------------------------------------------+ Best States ------------- Heat Dissipation 62 Energy Generation 23 Energy Capacity 380 Matter Stores 300 Matter Capacity 300 Sight Range 16 Terrain Scan Range 14 Terrain Scan Density 210 Armor Coverage 900 Resistance: EX 90 Weapon Cycling 25 Evasion (%) 55 Targeting Accuracy 8 Armor Integrity Analysis 30 Recoil Reduction 4 Salvage Targeting 4 Offensive Hacking 20 Defensive Hacking 20 Item Schematics ----------------- Component Analysis Suite | -7/Zion | Archive Imp. Hardlight Generator | -7/Zion | Archive Mak. Armor Plating | -7/Zion | Archive Magnetic Acceleration Cannon | -7/Zion | Archive Adv. ECM Suite | -7/Zion | Archive 0b10 Decoder Chip [Generic] | -7/Zion | Archive Hrd. Heavy Armor Plating | -7/Zion | Archive Imp. Arc Projector | -7/Zion | Archive Lrn. Proton Cannon | -7/Zion | Archive Mak. Sword | -7/Zion | Archive Lyr. Medium Armor Plating | -7/Zion | Archive Adv. Terrain Scan Processor | -7/Zion | Archive Thermic Laser | -7/Zion | Archive Drone Bay | -7/Zion | Archive Armor Integrity Analyzer | -7/Zion | Archive Robot Schematics ------------------ B-36 Bruiser | -7/Zion | Archive K-01 Serf | -7/Zion | Archive M-28 Smith | -7/Zion | Archive D-83 Annihilator | -7/Zion | Archive Fabricated ------------ Nothing Alien Tech Used ----------------- Core Expander Achievements -------------- None Challenges ------------ None Game ------ Seed CooledSeismicWand Manual? 0 Play Time 02:18:31 Cumulative 248.7 hours Start 2022.05.01 @ 13:32:11 End 2022.05.01 @ 16:31:21 Sessions 3 Manual Loads 0 Difficulty Rogue Special Mode None Game No. 73 Rogue 56 Adventurer 17 Explorer 0 Win Type - Total 14 Types 8/0/5/1/0/0/0/0/0 Lore% 76 Gallery% 80 Achievement% 70 Wizard Run 0 Options --------- ASCII 0 Keyboard 0 Movement Arrows Keybinds 0 Fullscreen 1 Font 28/Dina Map View 72x54 Tactical HUD 1 Map Filters NONE Filters NONE Steam 1 RUN: e7c53877-c0ed-4538-86ef-6e7a7d1832eb